bitfinex-derivatives/quotes_ETHF0:USTF0_20250923
["timestamp","ask_amount","ask_price","bid_price","bid_amount"]
[1758616393189,0.5413,4206.5,4206.4,0.2192]
[1758616393384,0.8464,4206.5,4206.4,0.2192]
[1758616393784,0.8464,4206.5,4206.4,0.86661]
[1758616396089,0.8464,4206.5,4206.4,1.08771]
[1758616396686,0.8464,4206.5,4206.4,0.86661]
[1758616397186,0.8464,4206.5,4206.4,1.08821]
[1758616397488,0.8464,4206.5,4206.4,2.14812583]
[1758616397676,0.8464,4206.5,4206.4,2.36972583]
[1758616400093,0.3051,4206.5,4206.4,2.36972583]
[1758616400588,0.642,4206.5,4206.4,2.36972583]
[1758616400888,0.642,4206.5,4206.4,2.14812583]
[1758616400889,0.8502,4206.5,4206.4,2.14812583]
[1758616402093,0.8502,4206.5,4206.4,0.86661]
[1758616402586,0.8502,4206.5,4206.4,2.14812583]
[1758616402780,0.8502,4206.5,4206.4,2.36972583]
[1758616402985,0.642,4206.5,4206.4,2.36972583]
[1758616403191,0.8502,4206.5,4206.4,2.14813583]
[1758616403383,0.8502,4206.5,4206.4,0.86662]
[1758616404689,0.8502,4206.5,4206.4,1.08822]
[1758616406284,0.642,4206.5,4206.4,1.08822]
[1758616407683,0.4343,4206.5,4206.4,1.08822]
[1758616407889,0.3051,4206.5,4206.4,1.08822]
[1758616408190,0.8502,4206.5,4206.4,0.86662]
[1758616409686,0.8502,4206.5,4206.4,2.14807274]
[1758616412397,0.8502,4206.5,4206.4,0.86662]
[1758616412697,0.8502,4206.5,4206.4,2.14926044]
[1758616413194,0.8502,4206.5,4206.4,0.86662]
[1758616413497,0.8502,4206.5,4206.4,1.08832]
[1758616414303,0.3276,4207.0,4206.9,1.08167]
[1758616414503,0.2141,4207.4,4207.3,0.4324]
[1758616414800,0.89594251,4207.4,4207.3,0.4324]
[1758616414990,0.89594251,4207.4,4207.1,1.7102635]
[1758616415188,0.7491,4207.2,4207.1,0.63824]
[1758616415592,1.22335028,4207.2,4207.1,0.42754]
[1758616417205,0.8756,4207.0,4206.9,1.7102935]
[1758616417503,0.8756,4207.0,4206.9,0.42757]
[1758616417701,0.8756,4207.0,4206.9,1.7102935]
[1758616418403,0.8756,4207.0,4206.9,2.1426935]
[1758616419697,0.8756,4207.0,4206.9,2.3643935]
[1758616419898,0.5417,4207.4,4207.3,0.2217]
[1758616420103,1.25192829,4207.4,4207.3,0.4324]
[1758616420305,1.45932829,4207.4,4207.3,0.4324]
[1758616422107,1.21832829,4207.4,4207.3,0.4324]
[1758616422309,1.46521465,4207.4,4207.3,0.4324]
[1758616422909,0.9901,4207.4,4207.3,0.4324]
[1758616425210,0.9901,4207.4,4207.3,0.2107]
[1758616427003,0.5417,4207.4,4207.3,0.6541]
[1758616427711,0.7491,4207.4,4207.3,0.2107]
[1758616428212,0.7491,4207.4,4207.3,41.0107]
[1758616428908,0.7491,4207.4,4207.3,0.2107]
[1758616429108,0.3276,4207.4,4207.3,0.6541]
[1758616429313,0.8753,4208.0,4207.9,0.2107]
[1758616429609,2.03648303,4208.0,4207.6,0.42749]
[1758616429809,0.7491,4207.7,4207.6,0.63819]
[1758616432104,0.7491,4207.7,4207.6,0.85989]
[1758616433009,0.5417,4207.7,4207.6,1.08159]
[1758616433313,0.7491,4207.7,4207.6,0.85989]
[1758616434712,0.7491,4207.7,4207.6,1.08159]
[1758616434915,0.5417,4207.7,4207.6,1.08159]
[1758616435510,0.3276,4207.7,4207.6,1.08159]
[1758616436618,3.2078,4208.3,4207.9,0.2107]
[1758616436834,0.3276,4208.2,4208.1,0.6541]
[1758616437006,0.2141,4207.8,4207.7,1.70794144]
[1758616437207,0.7491,4207.8,4207.7,0.42749]
[1758616438907,0.7491,4207.8,4207.7,0.63819]
[1758616439712,0.7491,4207.8,4207.7,0.85989]
[1758616440413,0.1265,4208.0,4207.9,0.42747]
[1758616440720,0.1265,4208.0,4207.9,1.07817]
[1758616440919,0.1265,4208.5,4208.4,0.42742]
[1758616441109,0.5493,4208.4,4208.3,0.6507]
[1758616442715,0.5493,4208.4,4208.3,0.2203]
[1758616442716,0.7623,4208.4,4208.3,0.2203]
[1758616445309,0.241,4208.7,4208.4,0.42742]
[1758616445619,0.5493,4208.5,4208.4,1.07812]
[1758616445815,0.6737,4208.5,4208.4,1.07812]
[1758616446420,0.3358,4208.5,4208.4,1.07812]
[1758616447018,0.6737,4208.5,4208.4,1.07812]
[1758616447314,0.6737,4208.5,4208.4,41.87812]
[1758616447906,0.4602,4208.5,4208.4,41.87812]
[1758616448115,0.3358,4208.5,4208.4,41.87812]
[1758616448613,0.1265,4209.0,4208.9,0.42737]
[1758616448813,0.34,4209.0,4208.9,1.07807]
[1758616449213,0.4623,4209.0,4208.9,1.07807]
[1758616449420,0.3358,4209.0,4208.9,1.07807]
[1758616449818,0.8867,4209.0,4208.9,0.42737]
[1758616450019,0.3358,4208.7,4208.6,0.42739]
[1758616450223,0.7623,4208.7,4208.6,0.42739]
[1758616450615,0.7623,4208.7,4208.6,0.64769]
[1758616455526,0.7623,4208.7,4208.4,41.22741]
[1758616455821,0.42738,4208.8,4208.4,41.22741]
[1758616455822,0.6737,4208.5,4208.4,40.8]
[1758616456225,0.7623,4208.4,4208.3,0.42742]
[1758616456726,0.7623,4208.4,4208.3,41.44772]
[1758616457326,0.7623,4208.4,4208.3,0.64772]
[1758616457526,0.3274,4209.0,4208.9,0.6428]
[1758616457936,0.3274,4209.0,4208.9,40.8]
[1758616458122,0.6457,4209.0,4208.9,40.8]
[1758616458630,0.218,4208.8,4208.7,3.63518]
[1758616458819,0.421,4208.8,4208.7,3.63518]
[1758616459025,0.7393,4208.8,4208.7,3.63518]
[1758616462736,0.7393,4208.8,4208.7,3.84568]
[1758616463232,0.7393,4208.8,4208.7,4.27798]
[1758616463431,0.5213,4208.8,4208.7,4.05628]
[1758616463630,0.7393,4208.8,4208.7,4.05628]
[1758616465328,0.7393,4208.8,4208.7,3.2078]
[1758616465534,1.2577749,4208.8,4208.7,3.2078]
[1758616466239,0.421,4208.6,4208.5,0.4274]
[1758616466540,1.2577749,4208.6,4208.5,0.8485]
[1758616467038,1.2577749,4208.6,4208.5,1.0702]
[1758616467431,1.2577749,4208.6,4208.5,0.8485]
[1758616469238,1.0397749,4208.6,4208.5,1.0702]
[1758616469942,1.2577749,4208.6,4208.5,0.8485]
[1758616470134,1.2577749,4208.6,4208.5,0.84851]
[1758616470640,0.8472,4208.5,4208.4,0.42741]
[1758616470942,1.3656749,4208.5,4208.4,0.65041]
[1758616474332,0.5352,4208.0,4207.9,0.223]
[1758616474540,0.8472,4208.0,4207.9,0.223]
[1758616474945,0.8472,4208.0,4207.9,0.4288]
[1758616475745,1.37769285,4208.0,4207.9,0.4288]
[1758616476042,1.37769285,4208.0,4207.9,0.6503]
[1758616476043,0.4369,4208.0,4207.9,0.6503]
[1758616476245,0.3659,4208.5,4208.3,0.4288]
[1758616476545,1.04576919,4208.4,4208.3,1.07773]
[1758616477046,0.84236919,4208.4,4208.3,1.07773]
[1758616477234,1.04576919,4208.4,4208.3,1.07773]
[1758616477547,1.04576919,4208.4,4208.3,0.4288]
[1758616477747,0.4103,4208.1,4208.0,0.65045]
[1758616478046,1.25266919,4208.1,4208.0,0.65045]
[1758616478246,1.25266919,4208.1,4208.0,1.07775]
[1758616478439,0.8813,4208.5,4208.4,0.4288]
[1758616478635,1.41156623,4208.5,4208.4,0.6503]
[1758616478846,1.61846623,4208.5,4208.4,0.4288]
[1758616480443,1.61846623,4208.5,4208.0,40.8]
[1758616480750,0.7223,4208.1,4208.0,40.8]
[1758616481046,1.25256623,4208.1,4208.0,40.8]
[1758616481862,0.312,4208.4,4208.3,0.65043]
[1758616482147,3.2078,4208.7,4208.6,0.6503]
[1758616482148,3.9642,4208.7,4208.6,0.6503]
[1758616482350,4.50235238,4208.7,4208.6,0.4288]
[1758616482651,4.70925238,4208.7,4208.6,0.4288]
[1758616484248,4.70925238,4208.7,4208.6,0.223]
[1758616488644,0.1249,4208.5,4208.4,0.223]
[1758616488844,0.8472,4208.5,4208.4,0.223]
[1758616489144,0.7223,4208.3,4208.2,3.4308]
[1758616489449,1.26060078,4208.3,4208.2,44.2308]
[1758616490449,1.26060078,4208.3,4208.2,3.4308]
[1758616490748,1.26060078,4208.3,4208.2,3.2078]
[1758616492843,1.26060078,4208.3,4208.2,3.4308]
[1758616494251,1.26060078,4208.3,4208.2,3.2078]
[1758616494939,1.26060078,4208.3,4208.2,3.4308]
[1758616495544,1.26060078,4208.3,4208.2,3.6366]
[1758616495851,1.50160078,4208.3,4208.2,3.8581]
[1758616496351,1.50193459,4208.3,4208.2,3.8581]
[1758616496749,1.26093459,4208.3,4208.2,3.8581]
[1758616496945,1.09163459,4208.3,4208.2,3.8581]
[1758616497447,1.29503459,4208.3,4208.2,3.8581]
[1758616497652,1.05403459,4208.3,4208.2,3.8581]
[1758616498148,1.26093459,4208.3,4208.2,3.6366]
[1758616498546,1.26093459,4208.3,4208.2,3.8581]
[1758616500048,1.26093459,4208.3,4208.2,3.6366]
[1758616500450,1.26093459,4208.3,4208.2,3.8581]
[1758616501154,1.05403459,4208.3,4208.2,3.8581]
[1758616501556,1.26483459,4208.3,4208.2,3.4308]
[1758616501750,1.26483459,4208.3,4208.2,3.6246]
[1758616502053,1.26483459,4208.3,4208.2,3.4103]
[1758616502455,1.26483459,4208.3,4208.2,3.6246]
[1758616503051,1.26483459,4208.3,4208.2,0.4168]
[1758616503554,1.18069,4207.7,4207.6,3.6246]
[1758616503753,1.72552304,4207.7,4207.6,3.6246]
[1758616504453,1.18069,4207.7,4207.6,3.6246]
[1758616504958,0.7532,4207.7,4207.6,3.6246]
[1758616506256,0.7532,4207.7,4207.6,3.846]
[1758616507455,0.3303,4207.7,4207.6,3.846]
[1758616508950,0.3303,4208.4,4208.3,0.2143]
[1758616509152,0.53086033,4208.4,4208.3,1.06562]
[1758616509555,0.86116033,4208.4,4208.3,41.86562]
[1758616511963,0.86116033,4208.4,4208.3,41.2168]
[1758616512259,1.28406033,4208.4,4208.3,0.4168]
[1758616513362,0.86116033,4208.4,4208.3,0.6382]
[1758616514062,1.07326033,4208.4,4208.3,0.6382]
[1758616514961,1.07326033,4208.4,4208.3,41.4382]
[1758616515160,0.5424,4208.4,4208.3,41.4382]
[1758616515660,0.3303,4208.4,4208.3,41.4382]
[1758616521663,0.8769,4209.0,4208.9,0.64657]
[1758616521867,1.65236756,4209.0,4208.9,0.85967]
[1758616522162,0.3292,4208.9,4208.8,0.42737]
[1758616522367,1.52457757,4208.9,4208.8,0.42737]
[1758616522569,0.3292,4208.7,4208.6,0.42739]
[1758616522772,1.28696756,4208.7,4208.6,0.42739]
[1758616523171,1.28696756,4208.7,4208.6,0.2192]
[1758616523366,0.3292,4208.6,4208.5,0.4274]
[1758616523570,1.28696756,4208.6,4208.1,3.4488]
[1758616523773,0.4233,4208.2,4208.1,4.09545]
[1758616523965,0.7525,4208.2,4208.1,4.30855]
[1758616524166,0.546,4208.2,4208.1,45.33005]
[1758616528778,0.7525,4208.2,4208.1,4.06755]
[1758616529472,0.2168,4207.9,4207.8,0.42747]
[1758616529677,0.546,4207.9,4207.8,1.08127]
[1758616529877,0.3292,4207.9,4207.8,1.08127]
[1758616533082,0.5417,4207.9,4207.8,1.08127]
[1758616533680,0.5417,4207.9,4207.8,0.85977]
[1758616533978,0.5417,4207.9,4207.8,1.08127]
[1758616534483,0.3292,4207.9,4207.8,1.08127]
[1758616536576,0.5417,4207.9,4207.8,1.08127]
[1758616540481,0.5417,4207.9,4207.8,0.6538]
[1758616540785,0.7656,4207.9,4207.8,0.4323]
[1758616541686,0.7656,4207.9,4207.8,0.2192]
[1758616541888,0.7656,4207.9,4207.6,3.2078]
[1758616541889,1.18489,4207.7,4207.6,3.2078]
[1758616542089,1.71501624,4207.7,4207.6,3.2078]
[1758616544786,1.28752624,4207.7,4207.6,3.2078]
[1758616545788,0.1342,4208.0,4207.9,0.42747]
[1758616545789,0.321,4208.0,4207.9,0.42747]
[1758616545976,0.321,4208.1,4208.0,0.6485]
[1758616546286,0.56,4208.0,4207.9,0.42746]
[1758616546489,0.881,4208.0,4207.9,0.64016]
[1758616548782,0.881,4208.0,4207.9,0.85446]
[1758616549177,0.5335,4208.4,4208.3,1.07593]
[1758616549377,0.84313221,4208.4,4208.3,1.07593]
[1758616549586,0.321,4208.4,4208.3,1.07593]
[1758616553492,0.7574,4208.4,4208.3,0.427]
[1758616558992,0.7574,4208.4,4208.3,41.227]
[1758616562203,0.7574,4208.4,4208.3,41.4485]
[1758616562204,0.321,4208.4,4208.3,41.4485]
[1758616562998,3.24916458,4209.1,4208.9,0.42737]
[1758616563203,1.4184307,4209.0,4208.9,1.07957]
[1758616563702,0.2124,4208.4,4208.3,0.4307]
[1758616563999,0.2124,4208.4,4208.3,0.6522]
[1758616564196,0.2124,4208.4,4208.3,41.4522]
[1758616564406,0.5261,4208.4,4208.3,41.4522]
[1758616564598,0.5261,4208.4,4208.3,41.87963]
[1758616565201,0.5261,4208.4,4208.3,0.6522]
[1758616565503,0.5261,4208.4,4208.3,0.2096]
[1758616565504,0.7309,4208.4,4208.3,0.2096]
[1758616565900,0.9709,4208.4,4208.3,0.2096]
[1758616566096,0.7309,4208.3,4208.2,3.2078]
[1758616566291,0.7309,4208.3,4208.2,3.4174]
[1758616566909,0.7309,4208.3,4208.2,3.6385]
[1758616567208,0.7309,4208.3,4208.2,3.86]
[1758616567799,0.3137,4208.3,4208.2,3.86]
[1758616568704,0.5261,4208.3,4208.2,3.86]
[1758616572598,0.3137,4208.4,4208.2,4.06593]
[1758616572800,0.3137,4208.4,4208.3,0.6522]
[1758616573301,0.3137,4208.4,4208.3,41.4522]
[1758616573902,0.3137,4208.8,4208.7,0.4426]
[1758616574103,0.83178693,4208.8,4208.7,0.6522]
[1758616574298,0.3137,4208.8,4208.7,0.6522]
[1758616574498,0.83198138,4208.8,4208.7,0.6522]
[1758616574906,1.24918138,4208.8,4208.7,0.4307]
[1758616576109,0.83198138,4208.8,4208.7,0.6522]
[1758616577008,1.04898138,4208.8,4208.7,0.6522]
[1758616578515,1.04898138,4208.8,4208.3,41.04]
[1758616578516,0.5606,4208.5,4208.4,0.65042]
[1758616578818,0.8839,4208.5,4208.4,0.85452]
[1758616579210,0.8839,4208.5,4208.4,1.07602]
[1758616581412,0.8839,4208.5,4208.4,0.85452]
[1758616581610,0.8839,4208.5,4208.4,0.223]
[1758616581918,0.7606,4208.3,4208.2,3.2078]
[1758616582419,0.7606,4208.3,4208.2,3.4308]
[1758616583010,1.29124005,4208.3,4208.2,3.4308]
[1758616585916,0.1233,4208.0,4207.9,0.42746]
[1758616586120,1.41444643,4208.0,4207.9,0.42746]
[1758616587615,1.41444643,4208.0,4207.9,0.65046]
[1758616587813,1.41444643,4208.0,4207.9,0.85456]
[1758616589217,1.41444643,4208.0,4207.9,0.65046]
[1758616591622,1.41444643,4208.0,4207.9,0.85916]
[1758616592518,1.41444643,4208.0,4207.9,0.65046]
[1758616593320,1.41444643,4208.0,4207.9,0.42746]
[1758616596822,1.41444643,4208.0,4207.6,44.0078]
[1758616597017,0.3161,4207.9,4207.8,0.42747]
[1758616597222,1.28407985,4207.9,4207.8,0.42747]
[1758616598527,1.28407985,4207.9,4207.8,0.64217]
[1758616603141,1.06017985,4207.9,4207.8,1.07247]
[1758616603332,0.5238,4208.4,4208.3,0.85772]
[1758616603526,3.5239,4208.6,4208.5,1.07241]
[1758616604222,0.3161,4208.6,4208.5,1.07241]
[1758616605036,0.8942,4209.0,4208.9,1.07237]
[1758616605236,1.42986184,4209.0,4208.9,1.07237]
[1758616605427,1.42986184,4209.0,4208.9,4.28017]
[1758616606729,0.53566184,4209.0,4208.9,4.28017]
[1758616606937,0.3161,4209.3,4209.2,1.07234]
[1758616607426,0.3161,4209.3,4209.2,41.87234]
[1758616609522,0.6518,4210.0,4209.9,1.07226]
[1758616609727,0.5238,4210.3,4210.2,1.07223]
[1758616609936,0.7477,4210.3,4210.2,0.85063]
[1758616611945,0.3161,4210.3,4210.2,1.07223]
[1758616614626,0.5238,4210.3,4210.2,1.07223]
[1758616615037,0.3161,4210.3,4210.2,1.07223]
[1758616618345,0.3161,4210.5,4210.4,0.645]
[1758616618543,0.5596,4211.0,4210.9,0.85056]
[1758616618936,0.5596,4211.0,4210.9,41.65056]
[1758616619138,0.8757,4211.0,4210.9,41.65056]
[1758616619739,0.8757,4211.0,4210.9,41.2234]
[1758616623346,0.3267,4211.3,4211.2,0.42713]
[1758616623546,0.3267,4211.5,4211.4,0.2171]
[1758616623848,0.3267,4211.5,4211.4,0.6585]
[1758616624051,0.3267,4211.5,4211.4,3.8663]
[1758616624850,0.6702,4211.5,4211.4,3.8663]
[1758616625449,0.6702,4211.5,4211.4,3.645]
[1758616628657,0.6702,4211.5,4211.4,3.8663]
[1758616629858,0.3267,4211.5,4211.4,3.8663]
[1758616630055,0.42707,4211.9,4211.8,0.4372]
[1758616630056,1.20846,4211.9,4211.8,0.4372]
[1758616630250,0.5414,4211.9,4211.8,0.6585]
[1758616630454,0.96843,4212.2,4212.1,0.6585]
[1758616630654,0.5414,4212.2,4212.1,0.6585]
[1758616630960,0.3267,4212.2,4212.1,0.6585]
[1758616631360,0.5414,4212.2,4212.1,0.6585]
[1758616632156,0.3267,4212.4,4212.1,0.86424]
[1758616632464,0.3267,4212.4,4212.3,0.6585]
[1758616632661,0.5414,4212.4,4212.3,0.6585]
[1758616634663,3.3366,4213.0,4212.4,0.42701]
[1758616634966,0.7814,4212.8,4212.7,0.6585]
[1758616635160,0.5414,4212.8,4212.7,0.6585]
[1758616635662,0.5414,4212.8,4212.7,0.4372]
[1758616635852,0.3267,4212.8,4212.7,0.6585]
[1758616636554,0.567,4212.5,4212.4,0.2171]
[1758616636759,0.9024,4212.5,4212.4,0.4194]
[1758616637563,0.9024,4212.5,4212.4,0.6406]
[1758616637758,0.9024,4212.5,4212.4,0.4194]
[1758616638165,0.9024,4212.5,4212.4,0.6406]
[1758616638867,0.9024,4212.5,4212.4,0.4194]
[1758616639769,0.9024,4212.5,4212.4,0.6406]
[1758616640868,0.4642,4212.5,4212.4,0.6406]
[1758616641066,0.6705,4212.5,4212.4,0.6406]
[1758616641265,0.8783,4212.5,4212.4,0.4194]
[1758616641658,0.8783,4212.5,4212.4,0.43469807]
[1758616641960,1.40640606,4212.5,4212.4,0.43469807]
[1758616642960,1.40640606,4212.5,4212.4,0.01529807]
[1758616646663,0.42709,4211.6,4211.5,3.4478]
[1758616646864,1.27760606,4211.6,4211.5,3.4478]
[1758616647166,1.27760606,4211.6,4211.5,3.8557]
[1758616647772,1.27760606,4211.6,4211.5,3.6157]
[1758616648471,1.27760606,4211.6,4211.5,3.4134]
[1758616650970,1.27760606,4211.6,4211.5,3.2078]
[1758616651163,0.7163,4210.8,4210.7,3.2078]
[1758616651365,1.24050567,4210.8,4210.7,3.6657]
[1758616651568,1.24050567,4210.8,4210.7,44.4657]
[1758616651763,0.1327,4211.0,4210.9,0.2094]
[1758616651764,0.4417,4211.0,4210.9,0.2094]
[1758616651967,0.309,4211.0,4210.9,0.6486]
[1758616652972,0.6449,4211.0,4210.9,0.6486]
[1758616653170,0.849,4211.0,4210.9,0.4273]
[1758616653875,0.849,4211.0,4210.9,0.6486]
[1758616654666,0.849,4211.0,4210.9,0.4273]
[1758616657480,0.1327,4211.5,4210.9,0.4273]
[1758616657481,0.76301,4211.5,4211.4,0.4273]
[1758616657676,0.3359,4211.5,4211.4,0.85441]
[1758616657877,3.2078,4211.7,4211.5,0.42709]
[1758616658185,3.72,4211.7,4211.6,0.4273]
[1758616658484,3.9241,4211.7,4211.6,0.4273]
[1758616659781,3.9241,4211.7,4211.6,0.2179]
[1758616659984,0.5122,4211.4,4211.3,1.09441]
[1758616660776,0.7163,4211.4,4211.3,0.6673]
[1758616661085,0.849,4211.0,4210.9,0.42716]
[1758616661384,0.849,4211.0,4210.9,0.64506]
[1758616662382,0.849,4211.0,4210.9,0.85446]
[1758616662580,0.849,4211.0,4210.9,1.07576]
[1758616663189,0.6449,4211.0,4210.9,1.07576]
[1758616665089,0.6449,4211.5,4211.4,0.85441]
[1758616665290,0.6449,4211.5,4211.4,1.07571]
[1758616665489,0.6449,4211.5,4211.4,0.85441]
[1758616665681,0.849,4211.5,4211.4,0.4273]
[1758616667287,0.7163,4211.3,4211.2,0.6673]
[1758616667884,0.1327,4211.5,4210.7,44.0078]
[1758616667885,0.54,4211.0,4210.9,0.88506]
[1758616668080,0.849,4211.0,4210.9,0.88506]
[1758616668896,0.849,4211.0,4210.9,1.09446]
[1758616669292,0.6449,4211.0,4210.9,1.31576]
[1758616670496,0.849,4211.0,4210.9,1.09446]
[1758616670992,0.849,4211.0,4210.9,0.66716]
[1758616671187,0.849,4211.0,4210.9,0.88506]
[1758616674688,0.849,4211.0,4210.9,1.31576]
[1758616674897,0.73612,4211.4,4211.3,0.4273]
[1758616675096,0.93932,4211.4,4211.3,0.4273]
[1758616675498,1.14342,4211.4,4211.3,0.4273]
[1758616675696,0.7163,4211.4,4211.3,0.6486]
[1758616675897,1.14341,4211.4,4211.3,0.4273]
[1758616676097,1.66373787,4211.4,4211.3,0.4273]
[1758616676298,1.66373787,4211.4,4211.3,0.2179]
[1758616676694,0.4073,4211.0,4210.9,0.88506]
[1758616676892,0.849,4211.0,4210.9,0.88506]
[1758616677296,0.849,4211.0,4210.9,1.09446]
[1758616678695,0.849,4211.0,4210.9,0.2179]
[1758616678890,0.849,4211.0,4210.9,0.24]
[1758616679096,0.849,4211.0,4210.9,0.8886]
[1758616679587,0.849,4211.0,4210.9,0.6673]
[1758616682993,0.42716,4210.9,4210.7,44.0078]
[1758616683194,0.7212,4210.8,4210.7,40.8]
[1758616684093,0.7212,4210.8,4210.7,41.0209]
[1758616684094,0.3051,4210.8,4210.7,41.0209]
[1758616685196,0.3051,4210.8,4210.7,40.8]
[1758616685396,0.3051,4210.8,4210.7,41.04]
[1758616685697,0.3051,4210.8,4210.7,44.4687]
[1758616685894,0.516,4211.4,4211.3,0.42712]
[1758616686096,0.516,4211.4,4211.3,1.07072]
[1758616686097,1.03705435,4211.4,4211.3,1.07072]
[1758616686501,0.3051,4211.4,4211.3,1.07072]
[1758616687003,0.3051,4211.4,4211.3,4.27852]
[1758616687688,0.3051,4211.4,4211.3,4.51852]
[1758616688994,1.14831,4211.4,4211.3,0.4584]
[1758616691203,0.7212,4211.4,4211.3,0.6627]
[1758616692597,0.1253,4212.0,4211.3,3.6687]
[1758616692795,1.66790995,4211.9,4211.8,0.4227]
[1758616693199,1.66790995,4211.9,4211.8,41.2227]
[1758616694703,1.24084995,4211.9,4211.8,41.2227]
[1758616697205,1.24084995,4211.9,4211.8,41.0184]
[1758616697409,0.7553,4211.4,4211.3,0.2021]
[1758616697601,0.8851,4211.0,4210.9,0.62926]
[1758616697795,0.8851,4211.0,4210.9,1.07956]
[1758616698112,0.1298,4211.5,4210.9,1.07956]
[1758616698113,0.8851,4211.5,4211.4,0.4124]
[1758616698804,0.8851,4211.5,4211.4,0.2021]
[1758616699506,0.8851,4211.5,4211.4,0.4124]
[1758616700111,0.3313,4211.7,4211.6,0.6321]
[1758616701308,0.5527,4211.7,4211.6,0.6321]
[1758616703204,3.5391,4211.8,4211.7,0.64678]
[1758616703399,3.5391,4211.8,4211.7,1.05918]
[1758616703606,0.3313,4211.8,4211.7,1.05918]
[1758616703905,0.3313,4212.0,4211.9,0.62916]
[1758616704210,0.3313,4212.0,4211.9,1.29916]
[1758616704410,0.3313,4212.0,4211.9,42.09916]
[1758616708022,0.3313,4212.0,4211.9,45.30696]
[1758616713728,0.2116,4212.7,4212.6,0.42698]
[1758616713923,0.449,4212.7,4212.6,0.83418]
[1758616714124,0.7547,4212.7,4212.6,0.83418]
[1758616715225,0.7547,4212.7,4212.6,0.2028]
[1758616715624,0.7547,4212.7,4212.5,0.427]
[1758616715824,0.5357,4212.6,4212.5,0.427]
[1758616716026,0.7547,4212.6,4212.5,0.427]
[1758616717529,0.3445,4212.5,4212.4,0.24]
[1758616717736,0.4306,4212.1,4211.9,44.0078]
[1758616717930,0.457,4212.0,4211.9,44.43486]
[1758616718136,0.3241,4212.0,4211.9,44.65506]
[1758616719230,0.8876,4212.5,4212.4,0.62981]
[1758616721033,0.8876,4212.5,4212.4,0.2028]
[1758616725337,0.1329,4212.5,4212.1,0.24]
[1758616725545,0.1329,4212.5,4211.9,41.04]
[1758616725546,0.6686,4212.0,4211.9,41.04]
[1758616729139,0.8876,4212.0,4211.9,0.4428]
[1758616729347,0.8876,4211.5,4211.4,3.83771]
[1758616729644,0.8876,4211.5,4211.4,45.08211]
[1758616730940,0.8876,4211.5,4211.4,41.2072]
[1758616731133,0.8876,4211.5,4211.4,41.4472]
[1758616733842,0.6686,4211.5,4211.4,41.6674]
[1758616736555,0.3241,4211.9,4211.8,1.05447]
[1758616736854,3.2078,4212.3,4211.4,41.04]
[1758616736855,3.7435,4212.3,4212.2,0.4072]
[1758616737153,4.48990594,4212.3,4212.2,0.4072]
[1758616738150,4.48988786,4212.3,4212.2,0.4072]
[1758616738455,4.91690786,4212.3,4212.2,0.4072]
[1758616738654,4.48988786,4212.3,4212.2,0.4072]
[1758616740250,3.7435,4212.3,4212.2,0.6274]
[1758616741154,0.3241,4212.3,4212.2,0.8674]
[1758616741558,0.7561,4212.3,4212.2,0.6472]
[1758616741754,0.7591,4212.1,4212.0,0.87214]
[1758616742053,0.7591,4212.1,4212.0,0.2051]
[1758616742254,1.18615,4212.1,4212.0,0.2051]
[1758616742753,0.8897,4212.0,4211.9,0.63216]
[1758616743253,0.8897,4212.0,4211.9,0.2051]
[1758616743456,0.432,4211.7,4211.5,0.6671]
[1758616743656,0.7591,4211.6,4211.5,0.8722]
[1758616744355,0.7591,4211.6,4211.5,1.0811]
[1758616744652,0.7591,4211.6,4211.5,1.3017]
[1758616746354,0.7591,4211.6,4211.5,1.0811]
[1758616746653,0.7591,4211.6,4211.5,0.654]
[1758616746848,0.8591,4211.6,4211.4,40.8]
[1758616747049,0.4577,4211.5,4211.4,41.04]
[1758616747243,0.42713,4211.3,4211.0,0.42715]
[1758616747445,0.7591,4211.1,4211.0,0.63225]
[1758616747646,0.7591,4211.1,4211.0,0.84115]
[1758616747846,0.7591,4211.1,4211.0,41.88115]
[1758616748258,0.7591,4211.1,4211.0,41.454]
[1758616748560,1.18629,4210.7,4210.6,0.2051]
[1758616748854,1.18629,4210.7,4210.6,0.4451]
[1758616749055,1.18629,4210.7,4210.6,41.2451]
[1758616749360,1.18629,4210.7,4210.6,41.0051]
[1758616749556,1.18629,4210.7,4210.6,41.2451]
[1758616750257,0.7591,4210.7,4210.6,41.2451]
[1758616752258,0.7591,4210.7,4210.6,41.4657]
[1758616752856,0.3271,4211.0,4210.9,1.06176]
[1758616753052,3.5349,4211.2,4211.1,0.6346]
[1758616753262,3.5349,4211.2,4211.1,0.8746]
[1758616754156,0.6699,4212.0,4211.9,0.6346]
[1758616754363,0.3271,4212.0,4211.9,0.6346]
[1758616754561,0.6699,4212.0,4211.9,0.414]
[1758616754754,0.6699,4212.0,4211.9,41.214]
[1758616754955,0.6699,4212.0,4211.9,41.4346]
[1758616757660,0.6699,4212.0,4211.9,41.214]
[1758616757962,0.7679,4211.6,4211.5,0.6357]
[1758616758164,0.7679,4211.6,4211.5,1.0966]
[1758616758352,0.7679,4211.6,4211.5,41.8966]
[1758616759060,0.7679,4211.6,4211.5,42.1173]
[1758616759565,0.5491,4211.6,4211.5,42.1173]
[1758616760865,0.5491,4211.6,4211.5,41.8966]
[1758616761056,0.7679,4211.6,4211.5,0.4486]
[1758616761960,0.4377,4211.3,4211.2,0.63573]
[1758616762256,0.7679,4211.3,4211.2,0.87573]
[1758616762565,0.7679,4211.3,4211.2,41.89663]
[1758616762761,0.7679,4211.3,4211.2,42.11733]